[Event "German Championship Women 2022"]
[Site "Magdeburg"]
[Date "2022.08.20"]
[Round "9.6"]
[White "Falke, Ornella"]
[Black "Wartenberg, Alissa"]
[Result "1-0"]
[ECO "B40"]
[WhiteElo "1912"]
[BlackElo "1632"]
[Annotator "NA RC"]
[PlyCount "73"]
[EventDate "2022.08.14"]
[EventType "swiss"]
[EventCountry "GER"]
[SourceTitle "playchess.com"]
[Source "ChessBase"]
[SourceQuality "1"]
[TimeControl "40/5400+30:1800+30"]

1. e4 {[%emt 0:00:03]} c5 {[%emt 0:00:03]} 2. Nf3 {[%emt 0:01:20]} e6 {[%emt 0:00:08]} 3. c4 {[%emt 0:00:18]} Nc6 {[%emt 0:04:00]} 4. Nc3 {[%emt 0:00:15]} Nf6 {[%emt 0:02:16]} 5. d4 {[%emt 0:00:43]} cxd4 {[%emt 0:00:16]} 6. Nxd4 {[%emt 0:00:04]} Bc5 {[%emt 0:04:33]} 7. Nxc6 {[%emt 0:04:09]} dxc6 {[%emt 0:03:35]} 8. Qxd8+ {[%emt 0:02:50]} Kxd8 {[%emt 0:00:03]} 9. f3 {[%emt 0:07:08]} Re8 {[%emt 0:03:45]} 10. Bg5 {[%emt 0:10:35]} e5 {[%emt 0:00:13]} 11. O-O-O+ Ke7 {[%emt 0:02:10]} 12. Na4 {[%emt 0:05:23]} Bb4 {[%emt 0:08:43]} 13. Rd3 {[%emt 0:11:43]} b5 {[%emt 0:06:23]} 14. Rb3 {[%emt 0:06:44]} Ba5 {[%emt 0:08:43]} 15. cxb5 {[%emt 0:08:51]} Be6 {[%emt 0:00:24]} 16. Re3 {[%emt 0:00:33]} Red8 {[%emt 0:01:27]} 17. Nc3 {[%emt 0:01:38]} cxb5 {[%emt 0:02:37]} 18. Bxb5 {[%emt 0:00:22]} Rab8 {[%emt 0:00:41]} 19. Be2 {[%emt 0:03:41]} Bxc3 {[%emt 0:04:20]} 20. Rxc3 {[%emt 0:00:18]} Bxa2 {[%emt 0:00:29]} 21. Rd1 {[%emt 0:01:56]} Rdc8 {[%emt 0:06:07]} 22. Rxc8 {[%emt 0:13:56]} Rxc8+ {[%emt 0:01:48]} 23. Kd2 {[%emt 0:00:07]} Rd8+ {[%emt 0:07:25]} 24. Kc3 {[%emt 0:00:40]} Rc8+ {[%emt 0:00:42]} 25. Kb4 {[%emt 0:00:25]} Be6 {[%emt 0:02:03]} 26. Ka3 {[%emt 0:01:45]} Rb8 {[%emt 0:02:33]} 27. b4 {[%emt 0:00:27]} Rc8 {[%emt 0:01:44]} 28. Rc1 {[%emt 0:00:41]} Kd6 {[%emt 0:15:14]} 29. Rd1+ {[%emt 0:08:35]} Ke7 {[%emt 0:01:18]} 30. Rc1 {[%emt 0:02:52]} Kd6 {[%emt 0:00:29]} 31. Rxc8 {[%emt 0:01:31]} Bxc8 {[%emt 0:00:06]} 32. Be3 {[%emt 0:00:32]} a6 {[%emt 0:00:14]} 33. Bc4 {[%emt 0:00:49]} Ne8 {[%emt 0:04:34]} 34. Bc5+ {[%emt 0:01:06]} Kc6 {[%emt 0:00:36]} 35. Bd5+ {[%emt 0:00:33]} Kb5 {[%emt 0:00:49]} 36. Bxf7 {[%emt 0:00:10]} Nc7 {[%emt 0:00:16]} 37. Bd6 {[%emt 0:00:45]} 1-0

[Event "German Championship Women 2022"]
[Site "Magdeburg"]
[Date "2022.08.20"]
[Round "9.7"]
[White "Storkebaum, Ulrike"]
[Black "Halas, Julia"]
[Result "0-1"]
[ECO "C01"]
[WhiteElo "1768"]
[BlackElo "2012"]
[Annotator "NA RC"]
[PlyCount "86"]
[EventDate "2022.08.14"]
[EventType "swiss"]
[EventCountry "GER"]
[SourceTitle "playchess.com"]
[Source "ChessBase"]
[SourceQuality "1"]
[TimeControl "40/5400+30:1800+30"]

1. e4 {[%emt 0:00:03]} e6 {[%emt 0:00:04]} 2. d4 {[%emt 0:00:04]} d5 {[%emt 0:00:05]} 3. exd5 {[%emt 0:00:06]} exd5 {[%emt 0:00:05]} 4. Nf3 {[%emt 0:00:05]} Bd6 {[%emt 0:00:07]} 5. Bd3 {[%emt 0:00:11]} Ne7 {[%emt 0:00:11]} 6. O-O {[%emt 0:00:10]} Bg4 {[%emt 0:00:17]} 7. Re1 {[%emt 0:00:14]} Nbc6 {[%emt 0:00:17]} 8. c3 {[%emt 0:00:21]} Qd7 {[%emt 0:00:28]} 9. Nbd2 {[%emt 0:00:24]} O-O-O {[%emt 0:00:30]} 10. b4 {[%emt 0:00:16]} Ng6 {[%emt 0:00:38]} 11. b5 {[%emt 0:03:14]} Nce7 {[%emt 0:03:35]} 12. a4 {[%emt 0:03:27]} Nf4 {[%emt 0:04:59]} 13. Nf1 {[%emt 0:10:11]} Neg6 {[%emt 0:15:31]} 14. Bxf4 {[%emt 0:11:33]} Nxf4 {[%emt 0:00:18]} 15. Qc2 {[%emt 0:07:33]} Nxg2 {[%emt 0:09:21]} 16. Kxg2 {[%emt 0:01:58]} Bh3+ {[%emt 0:00:23]} 17. Kh1 {[%emt 0:01:04]} Qg4 {[%emt 0:00:34]} 18. Bf5+ {[%emt 0:01:13]} Qxf5 {[%emt 0:00:06]} 19. Qxf5+ {[%emt 0:00:25]} Bxf5 {[%emt 0:00:05]} 20. Ne5 {[%emt 0:02:12]} Bg6 {[%emt 0:06:12]} 21. Ng3 {[%emt 0:05:33]} f6 {[%emt 0:04:34]} 22. Nf3 {[%emt 0:02:57]} Rhe8 {[%emt 0:04:07]} 23. Kg1 {[%emt 0:01:24]} Kd7 {[%emt 0:02:12]} 24. Nh4 {[%emt 0:08:08]} Rxe1+ {[%emt 0:06:33]} 25. Rxe1 {[%emt 0:00:25]} Re8 {[%emt 0:00:21]} 26. Rxe8 {[%emt 0:06:00]} Bxe8 {[%emt 0:00:29]} 27. Nhf5 {[%emt 0:01:07]} Bf8 {[%emt 0:00:47]} 28. Ne3 {[%emt 0:02:21]} Bf7 {[%emt 0:00:56]} 29. f4 {[%emt 0:01:09]} g6 {[%emt 0:09:51]} 30. Kf2 {[%emt 0:01:24]} c6 {[%emt 0:09:58]} 31. Ng4 {[%emt 0:09:54]} Bg7 {[%emt 0:03:29]} 32. Ke3 {[%emt 0:07:36]} cxb5 {[%emt 0:01:30]} 33. axb5 {[%emt 0:00:08]} a5 {[%emt 0:00:46]} 34. bxa6 {[%emt 0:00:35]} bxa6 {[%emt 0:00:07]} 35. Kd3 {[%emt 0:03:11]} Kc6 {[%emt 0:05:33]} 36. Kc2 {[%emt 0:02:27]} Kb5 {[%emt 0:02:02]} 37. Nf2 {[%emt 0:04:29]} a5 {[%emt 0:01:26]} 38. Nd3 {[%emt 0:00:30]} Bf8 {[%emt 0:00:38]} 39. Ne2 {[%emt 0:02:46]} Bd6 {[%emt 0:02:46]} 40. Nec1 {[%emt 0:01:57]} Be6 {[%emt 0:01:12]} 41. Kd2 {[%emt 0:03:22]} Bf5 {[%emt 0:01:21]} 42. Ke3 {[%emt 0:02:19]} a4 {[%emt 0:01:41]} 43. h4 {[%emt 0:08:52]} a3 {[%emt 0:01:48]} 0-1

[Event "German Championship Women 2022"]
[Site "Magdeburg"]
[Date "2022.08.20"]
[Round "9.8"]
[White "Petersen, Sophie"]
[Black "Basovskiy, Jana"]
[Result "1-0"]
[ECO "B30"]
[WhiteElo "1597"]
[BlackElo "1867"]
[Annotator "NA RC"]
[PlyCount "49"]
[EventDate "2022.08.14"]
[EventType "swiss"]
[EventCountry "GER"]
[SourceTitle "playchess.com"]
[Source "ChessBase"]
[SourceQuality "1"]
[TimeControl "40/5400+30:1800+30"]

1. e4 {[%emt 0:00:01]} c5 {[%emt 0:00:03]} 2. Nf3 {[%emt 0:00:05]} Nc6 {[%emt 0:00:03]} 3. Bb5 {[%emt 0:06:56]} Nd4 {[%emt 0:00:16]} 4. Nxd4 {[%emt 0:03:24]} cxd4 {[%emt 0:00:04]} 5. c3 {[%emt 0:00:33]} a6 {[%emt 0:11:05]} 6. Bc4 {[%emt 0:02:15]} dxc3 {[%emt 0:01:44]} 7. Nxc3 {[%emt 0:03:34]} e6 {[%emt 0:00:13]} 8. O-O {[%emt 0:02:33]} b5 {[%emt 0:04:39]} 9. Bb3 {[%emt 0:03:29]} Bb7 {[%emt 0:02:24]} 10. Re1 {[%emt 0:01:59]} Bc5 {[%emt 0:02:55]} 11. d4 {[%emt 0:01:39]} Ba7 {[%emt 0:03:51]} 12. Bf4 {[%emt 0:06:37]} Ne7 {[%emt 0:00:46]} 13. Rc1 {[%emt 0:03:54]} Rc8 {[%emt 0:01:15]} 14. Bd6 {[%emt 0:04:45]} O-O {[%emt 0:03:29]} 15. Qd2 {[%emt 0:03:34]} Re8 {[%emt 0:01:50]} 16. e5 {[%emt 0:04:30]} Nf5 {[%emt 0:01:50]} 17. d5 {[%emt 0:03:24]} Nxd6 {[%emt 0:11:53]} 18. exd6 {[%emt 0:00:23]} Qf6 {[%emt 0:04:54]} 19. Ne4 {[%emt 0:08:16]} Qg6 {[%emt 0:07:22]} 20. Rc7 {[%emt 0:03:59]} Rxc7 {[%emt 0:04:15]} 21. dxc7 {[%emt 0:00:12]} Rc8 {[%emt 0:07:32]} 22. dxe6 {[%emt 0:04:43]} Bxe4 {[%emt 0:02:22]} 23. Rxe4 {[%emt 0:01:59]} fxe6 {[%emt 0:02:35]} 24. Qxd7 {[%emt 0:02:21]} Qxe4 {[%emt 0:06:36]} 25. Bxe6+ {[%emt 0:00:20]} 1-0

[Event "German Championship Women 2022"]
[Site "Magdeburg"]
[Date "2022.08.20"]
[Round "9.9"]
[White "Peglau, Sarah"]
[Black "Voigt, Anastasia"]
[Result "1/2-1/2"]
[ECO "D63"]
[WhiteElo "1782"]
[BlackElo "1694"]
[Annotator "NA RC"]
[PlyCount "80"]
[EventDate "2022.08.14"]
[EventType "swiss"]
[EventCountry "GER"]
[SourceTitle "playchess.com"]
[Source "ChessBase"]
[SourceQuality "1"]
[TimeControl "40/5400+30:1800+30"]

1. Nf3 {[%emt 0:00:03]} d5 {[%emt 0:00:09]} 2. d4 {[%emt 0:00:07]} Nf6 {[%emt 0:00:24]} 3. Bf4 {[%emt 0:00:06]} e6 {[%emt 0:00:30]} 4. e3 {[%emt 0:00:24]} Bd6 {[%emt 0:02:13]} 5. Bg5 {[%emt 0:01:31]} O-O {[%emt 0:01:18]} 6. c4 {[%emt 0:00:37]} Nbd7 {[%emt 0:01:34]} 7. Nc3 {[%emt 0:01:17]} Be7 {[%emt 0:02:27]} 8. Rc1 {[%emt 0:07:21]} dxc4 {[%emt 0:03:04]} 9. Bxc4 {[%emt 0:00:38]} c5 {[%emt 0:00:08]} 10. O-O {[%emt 0:00:52]} a6 {[%emt 0:01:26]} 11. a4 {[%emt 0:04:20]} b6 {[%emt 0:00:47]} 12. Qe2 {[%emt 0:05:40]} Bb7 {[%emt 0:01:48]} 13. Rfd1 {[%emt 0:00:30]} Qb8 {[%emt 0:05:35]} 14. d5 {[%emt 0:08:37]} exd5 {[%emt 0:02:34]} 15. Nxd5 {[%emt 0:01:34]} Bxd5 {[%emt 0:03:14]} 16. Bxd5 {[%emt 0:01:54]} Nxd5 {[%emt 0:02:24]} 17. Bxe7 {[%emt 0:01:00]} Nxe7 {[%emt 0:00:35]} 18. Rxd7 {[%emt 0:00:06]} Nc6 {[%emt 0:01:44]} 19. Rcd1 {[%emt 0:11:44]} Rd8 {[%emt 0:00:57]} 20. Qc4 {[%emt 0:08:38]} Rxd7 {[%emt 0:01:55]} 21. Rxd7 {[%emt 0:00:05]} Qe8 {[%emt 0:01:57]} 22. Qd3 {[%emt 0:04:48]} Rd8 {[%emt 0:06:15]} 23. Rxd8 {[%emt 0:00:18]} Qxd8 {[%emt 0:00:12]} 24. Qxd8+ {[%emt 0:04:58]} Nxd8 {[%emt 0:00:07]} 25. Ne5 {[%emt 0:00:39]} b5 {[%emt 0:01:26]} 26. axb5 {[%emt 0:00:49]} axb5 {[%emt 0:00:09]} 27. Kf1 {[%emt 0:00:48]} Nb7 {[%emt 0:02:28]} 28. Ke2 {[%emt 0:01:21]} f6 {[%emt 0:00:22]} 29. Nc6 {[%emt 0:03:24]} Kf7 {[%emt 0:00:48]} 30. Kd3 {[%emt 0:00:45]} Ke6 {[%emt 0:00:35]} 31. e4 {[%emt 0:06:29]} Nd6 {[%emt 0:04:59]} 32. b3 {[%emt 0:08:06]} g6 {[%emt 0:01:48]} 33. f3 {[%emt 0:00:11]} h6 {[%emt 0:01:46]} 34. g3 {[%emt 0:05:25]} Kd7 {[%emt 0:03:01]} 35. Nb8+ {[%emt 0:04:14]} Kc7 {[%emt 0:00:58]} 36. Na6+ {[%emt 0:00:11]} Kb6 {[%emt 0:00:07]} 37. Nb8 {[%emt 0:00:17]} Kc7 {[%emt 0:00:41]} 38. Na6+ {[%emt 0:00:05]} Kb6 {[%emt 0:00:06]} 39. Nb8 {[%emt 0:00:05]} Kc7 {[%emt 0:00:08]} 40. Na6+ {[%emt 0:00:08]} Kb6 {[%emt 0:00:06]} 1/2-1/2

[Event "German Championship Women 2022"]
[Site "Magdeburg"]
[Date "2022.08.20"]
[Round "9.10"]
[White "Heil, Marina"]
[Black "Peglau, Dora"]
[Result "0-1"]
[ECO "A34"]
[WhiteElo "1926"]
[BlackElo "1920"]
[Annotator "NA RC"]
[PlyCount "108"]
[EventDate "2022.08.14"]
[EventType "swiss"]
[EventCountry "GER"]
[SourceTitle "playchess.com"]
[Source "ChessBase"]
[SourceQuality "1"]
[TimeControl "40/5400+30:1800+30"]

1. c4 {[%emt 0:00:02]} c5 {[%emt 0:00:07]} 2. Nc3 {[%emt 0:00:05]} Nf6 {[%emt 0:00:10]} 3. g3 {[%emt 0:00:05]} d5 {[%emt 0:00:10]} 4. cxd5 {[%emt 0:00:21]} Nxd5 {[%emt 0:00:09]} 5. Bg2 {[%emt 0:00:21]} Nc7 {[%emt 0:00:13]} 6. d3 {[%emt 0:00:31]} e5 {[%emt 0:00:30]} 7. Nf3 {[%emt 0:01:14]} Nc6 {[%emt 0:00:11]} 8. O-O {[%emt 0:01:06]} Be7 {[%emt 0:00:53]} 9. Be3 {[%emt 0:06:59]} Be6 {[%emt 0:08:25]} 10. Ne4 {[%emt 0:06:00]} b6 {[%emt 0:03:21]} 11. Rc1 {[%emt 0:06:17]} Qd7 {[%emt 0:07:28]} 12. Neg5 {[%emt 0:05:48]} Bd5 {[%emt 0:01:24]} 13. Qa4 {[%emt 0:02:40]} O-O {[%emt 0:06:05]} 14. Bh3 {[%emt 0:02:47]} f5 {[%emt 0:02:29]} 15. Ne4 {[%emt 0:10:03]} Rad8 {[%emt 0:20:07]} 16. Nc3 {[%emt 0:02:06]} Be6 {[%emt 0:02:37]} 17. Bg2 {[%emt 0:03:35]} h6 {[%emt 0:10:46]} 18. Nh4 {[%emt 0:10:38]} b5 {[%emt 0:05:02]} 19. Nxb5 {[%emt 0:04:32]} Nd4 {[%emt 0:02:39]} 20. Bxd4 {[%emt 0:01:38]} exd4 {[%emt 0:00:39]} 21. Ng6 {[%emt 0:01:47]} Bd6 {[%emt 0:09:08]} 22. Nxf8 {[%emt 0:04:05]} Rxf8 {[%emt 0:01:27]} 23. Nxc7 {[%emt 0:07:06]} Qxa4 {[%emt 0:00:21]} 24. Nxe6 {[%emt 0:00:08]} Rb8 {[%emt 0:01:41]} 25. Bd5 {[%emt 0:03:21]} Kh7 {[%emt 0:00:28]} 26. Bb3 {[%emt 0:03:12]} Qa5 {[%emt 0:01:14]} 27. Rc2 {[%emt 0:00:26]} Rb5 {[%emt 0:03:03]} 28. Rfc1 {[%emt 0:00:18]} Qb6 {[%emt 0:00:51]} 29. Rc4 {[%emt 0:06:06]} Be7 {[%emt 0:05:50]} 30. Kf1 {[%emt 0:00:25]} Qxe6 {[%emt 0:00:41]} 31. Rxd4 {[%emt 0:02:15]} Qc6 {[%emt 0:01:19]} 32. Bd5 {[%emt 0:00:53]} Qf6 {[%emt 0:00:39]} 33. Ra4 {[%emt 0:00:57]} Qxb2 {[%emt 0:00:24]} 34. Rcc4 {[%emt 0:00:20]} a5 {[%emt 0:01:02]} 35. Rf4 {[%emt 0:00:47]} Qe5 {[%emt 0:01:21]} 36. Bc4 {[%emt 0:00:21]} Rb1+ {[%emt 0:00:18]} 37. Kg2 {[%emt 0:00:10]} Bg5 {[%emt 0:00:53]} 38. d4 {[%emt 0:01:25]} cxd4 {[%emt 0:00:42]} 39. Rxf5 {[%emt 0:00:19]} Qe4+ {[%emt 0:01:35]} 40. Rf3 {[%emt 0:00:07]} Qc6 {[%emt 0:02:57]} 41. Bd3+ {[%emt 0:30:47]} g6 {[%emt 0:03:54]} 42. Rxa5 {[%emt 0:00:00]} Bd8 {[%emt 0:08:20]} 43. Ra6 {[%emt 0:00:00]} Rb6 {[%emt 0:00:39]} 44. Ra7+ {[%emt 0:00:00]} Rb7 {[%emt 0:01:06]} 45. Ra8 {[%emt 0:00:00]} Rd7 {[%emt 0:02:33]} 46. Ra3 {[%emt 0:00:00]} h5 {[%emt 0:03:17]} 47. h4 {[%emt 0:00:00]} Bb6 {[%emt 0:01:30]} 48. Rb3 {[%emt 0:00:00]} Ra7 {[%emt 0:02:47]} 49. a4 {[%emt 0:00:00]} Qe6 {[%emt 0:01:29]} 50. Bb5 {[%emt 0:00:00]} Rc7 {[%emt 0:03:51]} 51. Ra3 {[%emt 0:00:00]} Ba5 {[%emt 0:00:20]} 52. Rf4 {[%emt 0:00:00]} Bc3 {[%emt 0:00:34]} 53. Bd3 {[%emt 0:00:00]} Qd6 {[%emt 0:00:28]} 54. Rb3 {[%emt 0:00:00]} Qd5+ 0-1

[Event "German Championship Women 2022"]
[Site "Magdeburg"]
[Date "2022.08.20"]
[Round "9.11"]
[White "Fock, Sana"]
[Black "Mader, Lena"]
[Result "1/2-1/2"]
[ECO "B10"]
[WhiteElo "1807"]
[BlackElo "1826"]
[Annotator "NA RC"]
[PlyCount "74"]
[EventDate "2022.08.14"]
[EventType "swiss"]
[EventCountry "GER"]
[SourceTitle "playchess.com"]
[Source "ChessBase"]
[SourceQuality "1"]
[TimeControl "40/5400+30:1800+30"]

1. e4 {[%emt 0:00:03]} c6 {[%emt 0:00:03]} 2. Nc3 {[%emt 0:00:05]} d5 {[%emt 0:00:13]} 3. Nf3 {[%emt 0:00:12]} dxe4 {[%emt 0:00:35]} 4. Nxe4 {[%emt 0:00:14]} Nf6 {[%emt 0:00:05]} 5. Qe2 {[%emt 0:00:14]} Nxe4 {[%emt 0:01:30]} 6. Qxe4 {[%emt 0:00:06]} Qd5 {[%emt 0:00:10]} 7. Qh4 {[%emt 0:00:50]} Bf5 {[%emt 0:06:04]} 8. Bc4 {[%emt 0:03:43]} Qe4+ {[%emt 0:01:40]} 9. Qxe4 {[%emt 0:00:12]} Bxe4 {[%emt 0:00:01]} 10. Bxf7+ {[%emt 0:00:30]} Kxf7 {[%emt 0:05:12]} 11. Ng5+ {[%emt 0:00:19]} Ke8 {[%emt 0:04:14]} 12. Nxe4 {[%emt 0:00:07]} Nd7 {[%emt 0:00:13]} 13. b3 {[%emt 0:03:53]} Nf6 {[%emt 0:01:16]} 14. Nxf6+ {[%emt 0:01:43]} exf6 {[%emt 0:00:06]} 15. Bb2 {[%emt 0:00:22]} Rd8 {[%emt 0:02:17]} 16. O-O-O {[%emt 0:03:01]} Bc5 {[%emt 0:03:02]} 17. f3 {[%emt 0:05:53]} Kf7 {[%emt 0:04:19]} 18. Rde1 {[%emt 0:05:23]} Rd7 {[%emt 0:01:39]} 19. d3 {[%emt 0:03:13]} Rhd8 {[%emt 0:01:43]} 20. Re4 {[%emt 0:03:20]} Bd6 {[%emt 0:03:43]} 21. g4 {[%emt 0:06:04]} g6 {[%emt 0:18:51]} 22. Rhe1 {[%emt 0:12:45]} Bf8 {[%emt 0:11:00]} 23. R1e2 {[%emt 0:12:46]} Bg7 {[%emt 0:02:29]} 24. Ba3 {[%emt 0:01:57]} Bf8 {[%emt 0:00:26]} 25. Bxf8 {[%emt 0:00:46]} Kxf8 {[%emt 0:00:59]} 26. Re6 {[%emt 0:02:51]} Kf7 {[%emt 0:01:35]} 27. h4 {[%emt 0:06:47]} h6 {[%emt 0:01:40]} 28. a3 {[%emt 0:01:06]} g5 {[%emt 0:02:27]} 29. h5 {[%emt 0:00:46]} Rc8 {[%emt 0:01:18]} 30. d4 {[%emt 0:06:32]} Rcc7 {[%emt 0:01:09]} 31. R6e4 {[%emt 0:03:19]} c5 {[%emt 0:03:52]} 32. dxc5 {[%emt 0:01:31]} Rxc5 {[%emt 0:00:01]} 33. Kb2 {[%emt 0:00:51]} Rdc7 {[%emt 0:01:04]} 34. R4e3 {[%emt 0:02:31]} R5c6 {[%emt 0:04:19]} 35. Re4 {[%emt 0:02:16]} Rc5 {[%emt 0:02:19]} 36. R4e3 {[%emt 0:01:22]} R5c6 {[%emt 0:00:11]} 37. Re4 {[%emt 0:00:53]} Rc5 {[%emt 0:00:27]} 1/2-1/2

[Event "German Championship Women 2022"]
[Site "Magdeburg"]
[Date "2022.08.20"]
[Round "9.12"]
[White "Spiel, Marianne"]
[Black "Just, Anita"]
[Result "1/2-1/2"]
[ECO "C07"]
[WhiteElo "1893"]
[BlackElo "1905"]
[Annotator "NA RC"]
[PlyCount "156"]
[EventDate "2022.08.14"]
[EventType "swiss"]
[EventCountry "GER"]
[SourceTitle "playchess.com"]
[Source "ChessBase"]
[SourceQuality "1"]
[TimeControl "40/5400+30:1800+30"]

1. e4 {[%emt 0:00:02]} e6 {[%emt 0:00:05]} 2. d4 {[%emt 0:00:05]} d5 {[%emt 0:00:04]} 3. Nd2 {[%emt 0:00:08]} c5 {[%emt 0:00:14]} 4. exd5 {[%emt 0:00:12]} Qxd5 {[%emt 0:00:06]} 5. Ngf3 {[%emt 0:00:32]} cxd4 {[%emt 0:00:23]} 6. Bc4 {[%emt 0:00:38]} Qd6 {[%emt 0:00:24]} 7. O-O {[%emt 0:01:51]} Nf6 {[%emt 0:00:13]} 8. Nb3 {[%emt 0:05:27]} Nc6 {[%emt 0:00:18]} 9. Nbxd4 {[%emt 0:01:19]} Nxd4 {[%emt 0:00:07]} 10. Qxd4 {[%emt 0:01:02]} Qxd4 {[%emt 0:00:31]} 11. Nxd4 {[%emt 0:00:02]} a6 {[%emt 0:00:36]} 12. Bg5 {[%emt 0:07:29]} Be7 {[%emt 0:02:10]} 13. c3 {[%emt 0:05:55]} h6 {[%emt 0:06:23]} 14. Bh4 {[%emt 0:00:41]} Ne4 {[%emt 0:01:53]} 15. Bxe7 {[%emt 0:02:11]} Kxe7 {[%emt 0:08:33]} 16. Rad1 {[%emt 0:01:37]} Bd7 {[%emt 0:05:54]} 17. Rfe1 {[%emt 0:02:07]} Nd6 {[%emt 0:02:36]} 18. Be2 {[%emt 0:03:40]} Rac8 {[%emt 0:05:04]} 19. Bf3 {[%emt 0:04:56]} Rc7 {[%emt 0:02:25]} 20. Re2 {[%emt 0:05:12]} Rhc8 {[%emt 0:06:22]} 21. Bg4 {[%emt 0:04:40]} g6 {[%emt 0:10:58]} 22. f4 {[%emt 0:01:30]} Nb5 {[%emt 0:21:20]} 23. Nf3 {[%emt 0:03:25]} Bc6 {[%emt 0:03:39]} 24. Ne5 {[%emt 0:01:37]} Nd6 {[%emt 0:04:55]} 25. Nxg6+ {[%emt 0:03:07]} Kf6 {[%emt 0:03:45]} 26. Ne5 {[%emt 0:04:20]} Nf5 {[%emt 0:03:42]} 27. Nxc6 {[%emt 0:01:44]} Rxc6 {[%emt 0:00:46]} 28. Kf2 {[%emt 0:01:30]} R8c7 {[%emt 0:01:35]} 29. g3 {[%emt 0:01:11]} Ne7 {[%emt 0:00:58]} 30. Bf3 {[%emt 0:00:45]} Rc5 {[%emt 0:00:38]} 31. Rd4 {[%emt 0:03:51]} Nc6 {[%emt 0:01:54]} 32. Rd6 {[%emt 0:03:38]} Ne7 {[%emt 0:01:11]} 33. Red2 {[%emt 0:00:35]} Nc8 {[%emt 0:01:16]} 34. Rd7 {[%emt 0:05:24]} Nb6 {[%emt 0:00:56]} 35. Rxc7 {[%emt 0:00:56]} Rxc7 {[%emt 0:00:04]} 36. Be2 {[%emt 0:08:08]} Ke7 {[%emt 0:00:52]} 37. Rd4 {[%emt 0:01:02]} Nd5 {[%emt 0:01:40]} 38. Bd1 {[%emt 0:00:34]} Nf6 {[%emt 0:00:50]} 39. h3 {[%emt 0:00:53]} Ne8 {[%emt 0:00:23]} 40. Bb3 {[%emt 0:01:22]} Nd6 {[%emt 0:00:30]} 41. Kf3 {[%emt 0:31:50]} Rc8 {[%emt 0:32:57]} 42. Rd2 {[%emt 0:06:40]} Rc5 {[%emt 0:00:00]} 43. g4 {[%emt 0:00:00]} Rc8 {[%emt 0:00:00]} 44. Re2 {[%emt 0:00:00]} Kf6 {[%emt 0:00:00]} 45. Rd2 {[%emt 0:00:00]} Ke7 {[%emt 0:00:00]} 46. Rd4 {[%emt 0:00:00]} Rc5 {[%emt 0:00:00]} 47. a3 {[%emt 0:00:00]} Rb5 {[%emt 0:00:00]} 48. Rb4 {[%emt 0:00:00]} Rc5 {[%emt 0:00:00]} 49. Ba2 {[%emt 0:00:00]} Rc7 {[%emt 0:00:00]} 50. Rd4 {[%emt 0:00:00]} Rc5 {[%emt 0:00:00]} 51. c4 {[%emt 0:00:00]} Rc8 {[%emt 0:00:00]} 52. b4 {[%emt 0:00:00]} Rc7 {[%emt 0:00:00]} 53. c5 {[%emt 0:00:00]} Nb5 {[%emt 0:00:00]} 54. Rd3 {[%emt 0:00:06]} a5 {[%emt 0:00:00]} 55. Ke3 {[%emt 0:03:42]} axb4 {[%emt 0:00:00]} 56. axb4 {[%emt 0:00:02]} Na7 {[%emt 0:00:00]} 57. Kd2 {[%emt 0:00:43]} Nc6 {[%emt 0:00:00]} 58. Kc3 {[%emt 0:00:25]} Nd8 {[%emt 0:00:12]} 59. Bc4 {[%emt 0:01:09]} b6 {[%emt 0:01:36]} 60. cxb6 {[%emt 0:00:46]} Rc6 {[%emt 0:01:32]} 61. Re3 {[%emt 0:01:20]} Rxb6 {[%emt 0:00:35]} 62. b5 {[%emt 0:01:24]} Kd6 {[%emt 0:02:31]} 63. Re5 {[%emt 0:00:35]} f6 {[%emt 0:01:06]} 64. Re1 {[%emt 0:01:01]} e5 {[%emt 0:00:51]} 65. fxe5+ {[%emt 0:00:22]} fxe5 {[%emt 0:00:06]} 66. Ra1 {[%emt 0:00:37]} Kc5 {[%emt 0:01:26]} 67. Ra6 {[%emt 0:01:14]} Nb7 {[%emt 0:00:19]} 68. Rxb6 {[%emt 0:00:56]} Kxb6 {[%emt 0:00:04]} 69. Bd3 {[%emt 0:02:29]} Nd6 {[%emt 0:01:09]} 70. h4 {[%emt 0:00:36]} Kc5 {[%emt 0:01:32]} 71. g5 {[%emt 0:01:09]} hxg5 {[%emt 0:00:31]} 72. hxg5 {[%emt 0:00:02]} e4 {[%emt 0:01:28]} 73. Be2 {[%emt 0:00:22]} Ne8 {[%emt 0:00:52]} 74. g6 {[%emt 0:00:37]} Ng7 {[%emt 0:00:17]} 75. Kd2 {[%emt 0:01:38]} Nf5 {[%emt 0:00:24]} 76. Bg4 {[%emt 0:00:43]} Ne7 {[%emt 0:00:52]} 77. Bh5 {[%emt 0:01:24]} Nxg6 {[%emt 0:00:22]} 78. Bxg6 {[%emt 0:00:06]} Kxb5 {[%emt 0:00:07]} 1/2-1/2